[Event "Early-Titled-Tuesday-Blitz-January-23-2024"]
[Site "Chess.com"]
[Date "2024.01.23"]
[Round "1"]
[White "karinachess1"]
[Black "LileKoridze"]
[Result "1/2-1/2"]
[WhiteElo "2606"]
[BlackElo "2286"]
[TimeControl "180+1"]
[EndTime "8:08:55 PST"]
[Termination "Game drawn by repetition"]

1. d4 {[%clk 0:03:00.9]} 1... Nf6 {[%clk 0:02:58.3]} 2. c4 {[%clk 0:03:00.9]}
2... e6 {[%clk 0:02:55.8]} 3. Nc3 {[%clk 0:03:00.7]} 3... Bb4 {[%clk 0:02:55.1]}
4. Qc2 {[%clk 0:03:00.8]} 4... O-O {[%clk 0:02:50.8]} 5. a3 {[%clk 0:03:00.8]}
5... Bxc3+ {[%clk 0:02:50.9]} 6. Qxc3 {[%clk 0:03:01.3]} 6... d5 {[%clk
0:02:51.6]} 7. Nf3 {[%clk 0:03:00.8]} 7... dxc4 {[%clk 0:02:51.5]} 8. Qxc4
{[%clk 0:03:00.6]} 8... b6 {[%clk 0:02:52]} 9. Bg5 {[%clk 0:02:59]} 9... Ba6
{[%clk 0:02:49.2]} 10. Qc2 {[%clk 0:02:59.2]} 10... Nbd7 {[%clk 0:02:48.3]} 11.
e4 {[%clk 0:02:43.3]} 11... Bxf1 {[%clk 0:02:47.3]} 12. Kxf1 {[%clk 0:02:43.4]}
12... h6 {[%clk 0:02:47]} 13. Bh4 {[%clk 0:02:43.4]} 13... Qc8 {[%clk
0:02:40.7]} 14. Rd1 {[%clk 0:02:29.4]} 14... Qb7 {[%clk 0:01:59.6]} 15. e5
{[%clk 0:02:04.4]} 15... Nd5 {[%clk 0:01:56]} 16. Qe4 {[%clk 0:02:03.2]} 16...
c5 {[%clk 0:01:54.6]} 17. g3 {[%clk 0:01:31.7]} 17... cxd4 {[%clk 0:01:41.2]}
18. Rxd4 {[%clk 0:01:32.6]} 18... Nc5 {[%clk 0:01:38.9]} 19. Qg4 {[%clk
0:01:32.6]} 19... f5 {[%clk 0:00:57.7]} 20. Qh5 {[%clk 0:01:26.7]} 20... f4
{[%clk 0:00:53.8]} 21. Rg1 {[%clk 0:00:46.8]} 21... Rf5 {[%clk 0:00:45.9]} 22.
Qg4 {[%clk 0:00:46.9]} 22... Raf8 {[%clk 0:00:34.2]} 23. Bf6 {[%clk 0:00:35.8]}
23... Nxf6 {[%clk 0:00:24.7]} 24. exf6 {[%clk 0:00:36.2]} 24... R8xf6 {[%clk
0:00:20]} 25. gxf4 {[%clk 0:00:35.2]} 25... Qa6+ {[%clk 0:00:12.2]} 26. Kg2
{[%clk 0:00:30.9]} 26... Nd3 {[%clk 0:00:11.8]} 27. Ne5 {[%clk 0:00:20.3]} 27...
Nxf4+ {[%clk 0:00:06.5]} 28. Kh1 {[%clk 0:00:20.5]} 28... Qb7+ {[%clk
0:00:06.1]} 29. Qf3 {[%clk 0:00:13.2]} 29... Qxf3+ {[%clk 0:00:04.9]} 30. Nxf3
{[%clk 0:00:14.1]} 30... Ne2 {[%clk 0:00:05.2]} 31. Rd8+ {[%clk 0:00:14.2]}
31... Kh7 {[%clk 0:00:05.8]} 32. Nd2 {[%clk 0:00:10.9]} 32... Nxg1 {[%clk
0:00:05.5]} 33. Kxg1 {[%clk 0:00:10.4]} 33... Rg6+ {[%clk 0:00:02.9]} 34. Kf1
{[%clk 0:00:10.5]} 34... Rd5 {[%clk 0:00:03.5]} 35. Rxd5 {[%clk 0:00:07]} 35...
exd5 {[%clk 0:00:04.4]} 36. Nf3 {[%clk 0:00:06.8]} 36... Rc6 {[%clk 0:00:04.5]}
37. Nd4 {[%clk 0:00:06.5]} 37... Rc1+ {[%clk 0:00:04.6]} 38. Ke2 {[%clk
0:00:06.6]} 38... Rh1 {[%clk 0:00:04.8]} 39. Nb5 {[%clk 0:00:05.1]} 39... a5
{[%clk 0:00:03.5]} 40. Nc3 {[%clk 0:00:04.5]} 40... Rxh2 {[%clk 0:00:03.1]} 41.
Nxd5 {[%clk 0:00:04.7]} 41... b5 {[%clk 0:00:03.1]} 42. Nc7 {[%clk 0:00:05.1]}
42... b4 {[%clk 0:00:03.4]} 43. axb4 {[%clk 0:00:05.6]} 43... axb4 {[%clk
0:00:04.3]} 44. Na6 {[%clk 0:00:06.1]} 44... b3 {[%clk 0:00:04.1]} 45. Nc5
{[%clk 0:00:06.8]} 45... Rh3 {[%clk 0:00:03.8]} 46. Ne4 {[%clk 0:00:04.4]} 46...
Kg8 {[%clk 0:00:02.8]} 47. Nd2 {[%clk 0:00:04.1]} 47... h5 {[%clk 0:00:02.2]}
48. f3 {[%clk 0:00:04.7]} 48... h4 {[%clk 0:00:01.5]} 49. Nxb3 {[%clk
0:00:04.2]} 49... Rh2+ {[%clk 0:00:02]} 50. Kf1 {[%clk 0:00:04.4]} 50... Rxb2
{[%clk 0:00:02.6]} 51. Nd4 {[%clk 0:00:05.3]} 51... h3 {[%clk 0:00:02.7]} 52.
Kg1 {[%clk 0:00:05.9]} 52... Rd2 {[%clk 0:00:02.3]} 53. Nf5 {[%clk 0:00:06]}
53... Rd3 {[%clk 0:00:02.7]} 54. Kf2 {[%clk 0:00:03.5]} 54... h2 {[%clk
0:00:02.3]} 55. Ng3 {[%clk 0:00:03.9]} 55... Rd5 {[%clk 0:00:01.6]} 56. Kg2
{[%clk 0:00:04.2]} 56... Rg5 {[%clk 0:00:02.2]} 57. Kxh2 {[%clk 0:00:04.6]}
57... Rg6 {[%clk 0:00:02.5]} 58. Kg2 {[%clk 0:00:04.9]} 58... Rf6 {[%clk
0:00:03.1]} 59. Kf2 {[%clk 0:00:05.5]} 59... Rd6 {[%clk 0:00:03.2]} 60. Ne4
{[%clk 0:00:06.1]} 60... Rd4 {[%clk 0:00:03.3]} 61. Ke3 {[%clk 0:00:06.6]} 61...
Ra4 {[%clk 0:00:03.1]} 62. Kf4 {[%clk 0:00:07]} 62... Kf7 {[%clk 0:00:03]} 63.
Kg3 {[%clk 0:00:07.4]} 63... Kg6 {[%clk 0:00:02.4]} 64. Nf2 {[%clk 0:00:07.7]}
64... Kf5 {[%clk 0:00:02.4]} 65. Ng4 {[%clk 0:00:08.1]} 65... Rxg4+ {[%clk
0:00:02]} 66. fxg4+ {[%clk 0:00:08.1]} 66... Kg5 {[%clk 0:00:02.5]} 67. Kh3
{[%clk 0:00:06.5]} 67... Kf4 {[%clk 0:00:02.1]} 68. Kh4 {[%clk 0:00:05.2]} 68...
g6 {[%clk 0:00:02.6]} 69. g5 {[%clk 0:00:05.4]} 69... Kf5 {[%clk 0:00:02.8]} 70.
Kh3 {[%clk 0:00:05.8]} 70... Kxg5 {[%clk 0:00:03.3]} 71. Kg3 {[%clk 0:00:06.4]}
71... Kf5 {[%clk 0:00:03.8]} 72. Kf3 {[%clk 0:00:07]} 72... g5 {[%clk
0:00:04.5]} 73. Kg3 {[%clk 0:00:07.6]} 73... g4 {[%clk 0:00:04.1]} 74. Kg2
{[%clk 0:00:08.1]} 74... Kg5 {[%clk 0:00:04.8]} 75. Kg3 {[%clk 0:00:08.6]} 75...
Kf5 {[%clk 0:00:04.7]} 76. Kg2 {[%clk 0:00:08.9]} 76... Kg5 {[%clk 0:00:05.4]}
77. Kg3 {[%clk 0:00:09.5]} 77... Kf5 {[%clk 0:00:06.1]} 1/2-1/2

[Event "Early-Titled-Tuesday-Blitz-January-23-2024"]
[Site "Chess.com"]
[Date "2024.01.23"]
[Round "1"]
[White "GKARU"]
[Black "sokidze"]
[Result "1/2-1/2"]
[WhiteElo "2473"]
[BlackElo "2832"]
[TimeControl "180+1"]
[EndTime "8:09:01 PST"]
[Termination "Game drawn - insufficient material"]

1. d4 {[%clk 0:03:00.9]} 1... Nf6 {[%clk 0:02:59.9]} 2. Nf3 {[%clk 0:02:53.2]}
2... d5 {[%clk 0:02:59.7]} 3. c4 {[%clk 0:02:52.8]} 3... e6 {[%clk 0:02:59]} 4.
Bg5 {[%clk 0:02:51.5]} 4... dxc4 {[%clk 0:02:58]} 5. Qa4+ {[%clk 0:02:48.4]}
5... Nbd7 {[%clk 0:02:56.4]} 6. Nbd2 {[%clk 0:02:37.7]} 6... a6 {[%clk
0:02:48.2]} 7. Qxc4 {[%clk 0:02:37.6]} 7... c5 {[%clk 0:02:45.5]} 8. e3 {[%clk
0:02:34.8]} 8... cxd4 {[%clk 0:02:36.6]} 9. Nxd4 {[%clk 0:02:34.2]} 9... Be7
{[%clk 0:02:34.2]} 10. Be2 {[%clk 0:02:33.4]} 10... O-O {[%clk 0:02:32.9]} 11.
O-O {[%clk 0:02:33.6]} 11... Ne5 {[%clk 0:02:24.7]} 12. Qb3 {[%clk 0:02:32.3]}
12... h6 {[%clk 0:01:55.7]} 13. Bh4 {[%clk 0:02:30.4]} 13... Ng6 {[%clk
0:01:52.5]} 14. Bg3 {[%clk 0:02:29.7]} 14... e5 {[%clk 0:01:48]} 15. N4f3 {[%clk
0:02:29.8]} 15... b5 {[%clk 0:01:39.1]} 16. Rfd1 {[%clk 0:02:24.9]} 16... Be6
{[%clk 0:01:37.3]} 17. Qc2 {[%clk 0:02:22.7]} 17... Rc8 {[%clk 0:01:35.6]} 18.
Qb1 {[%clk 0:02:22.5]} 18... Qc7 {[%clk 0:01:32.1]} 19. a4 {[%clk 0:02:21]}
19... Nh5 {[%clk 0:01:09.5]} 20. axb5 {[%clk 0:02:18.9]} 20... axb5 {[%clk
0:01:09]} 21. Bxb5 {[%clk 0:02:18.1]} 21... Nxg3 {[%clk 0:01:08.9]} 22. hxg3
{[%clk 0:02:17.7]} 22... Rb8 {[%clk 0:01:08.2]} 23. Rc1 {[%clk 0:01:51]} 23...
Qb6 {[%clk 0:01:04.4]} 24. Bc4 {[%clk 0:01:51]} 24... Ra8 {[%clk 0:00:40.6]} 25.
Rxa8 {[%clk 0:01:47.8]} 25... Rxa8 {[%clk 0:00:41.5]} 26. Bxe6 {[%clk
0:01:47.4]} 26... Qxe6 {[%clk 0:00:42.4]} 27. b3 {[%clk 0:01:47.4]} 27... Rb8
{[%clk 0:00:39.6]} 28. Qc2 {[%clk 0:01:43.8]} 28... Ba3 {[%clk 0:00:35.8]} 29.
Ra1 {[%clk 0:01:43.5]} 29... Bb4 {[%clk 0:00:32.6]} 30. Qc4 {[%clk 0:01:40.6]}
30... Qe7 {[%clk 0:00:22]} 31. Ra6 {[%clk 0:01:21.1]} 31... Nf8 {[%clk
0:00:21.1]} 32. Rc6 {[%clk 0:01:17.1]} 32... Bxd2 {[%clk 0:00:10]} 33. Nxd2
{[%clk 0:01:16.2]} 33... Ne6 {[%clk 0:00:09.8]} 34. Nf3 {[%clk 0:01:08]} 34...
Rb4 {[%clk 0:00:09.1]} 35. Rc8+ {[%clk 0:01:04.8]} 35... Kh7 {[%clk 0:00:09.3]}
36. Qc2+ {[%clk 0:01:04.4]} 36... e4 {[%clk 0:00:09.6]} 37. Nd2 {[%clk
0:01:02.6]} 37... f5 {[%clk 0:00:07.7]} 38. Rc4 {[%clk 0:00:48.5]} 38... Rb7
{[%clk 0:00:05.9]} 39. Rc6 {[%clk 0:00:49]} 39... Ng5 {[%clk 0:00:05.5]} 40. Qc5
{[%clk 0:00:43.1]} 40... Qxc5 {[%clk 0:00:02.4]} 41. Rxc5 {[%clk 0:00:44]} 41...
Rd7 {[%clk 0:00:03]} 42. Rc2 {[%clk 0:00:36.7]} 42... Nf7 {[%clk 0:00:03.1]} 43.
b4 {[%clk 0:00:36.1]} 43... Rb7 {[%clk 0:00:03]} 44. Rb2 {[%clk 0:00:35.7]}
44... Ne5 {[%clk 0:00:02.7]} 45. b5 {[%clk 0:00:34.3]} 45... Nd3 {[%clk
0:00:03.3]} 46. Rb1 {[%clk 0:00:34.7]} 46... Kg6 {[%clk 0:00:02.2]} 47. Nc4
{[%clk 0:00:34.4]} 47... Kf6 {[%clk 0:00:01.8]} 48. b6 {[%clk 0:00:34.7]} 48...
Ke6 {[%clk 0:00:02.4]} 49. Na5 {[%clk 0:00:33.9]} 49... Rb8 {[%clk 0:00:01.9]}
50. b7 {[%clk 0:00:34.1]} 50... Kd6 {[%clk 0:00:01.7]} 51. Rb6+ {[%clk 0:00:33]}
51... Kc7 {[%clk 0:00:01.9]} 52. Rg6 {[%clk 0:00:33]} 52... Nc5 {[%clk
0:00:02.4]} 53. Rxg7+ {[%clk 0:00:32.9]} 53... Kb6 {[%clk 0:00:02.9]} 54. Nc4+
{[%clk 0:00:33.2]} 54... Kc6 {[%clk 0:00:03.5]} 55. Rg6+ {[%clk 0:00:31.1]}
55... Kb5 {[%clk 0:00:02.5]} 56. Nd6+ {[%clk 0:00:30.9]} 56... Kb4 {[%clk
0:00:02]} 57. Rxh6 {[%clk 0:00:27.2]} 57... Nxb7 {[%clk 0:00:02.2]} 58. Nxb7
{[%clk 0:00:26.4]} 58... Rxb7 {[%clk 0:00:03.1]} 59. Rh5 {[%clk 0:00:22.9]}
59... Rf7 {[%clk 0:00:02.1]} 60. Kh2 {[%clk 0:00:22.9]} 60... Kc4 {[%clk
0:00:02]} 61. g4 {[%clk 0:00:23.3]} 61... fxg4 {[%clk 0:00:01.9]} 62. Kg3 {[%clk
0:00:23.5]} 62... Kd3 {[%clk 0:00:02.1]} 63. Ra5 {[%clk 0:00:19]} 63... Ke2
{[%clk 0:00:02.1]} 64. Ra2+ {[%clk 0:00:19.3]} 64... Ke1 {[%clk 0:00:02.3]} 65.
Kxg4 {[%clk 0:00:18.6]} 65... Kf1 {[%clk 0:00:02.6]} 66. g3 {[%clk 0:00:16.8]}
66... Kg2 {[%clk 0:00:02.9]} 67. Rb2 {[%clk 0:00:16.1]} 67... Rf3 {[%clk
0:00:02.5]} 68. Rb4 {[%clk 0:00:13.6]} 68... Kxf2 {[%clk 0:00:02.3]} 69. Rxe4
{[%clk 0:00:14]} 69... Rxg3+ {[%clk 0:00:02.8]} 70. Kf4 {[%clk 0:00:14.6]} 70...
Rf3+ {[%clk 0:00:03.3]} 71. Ke5 {[%clk 0:00:14.4]} 71... Rxe3 {[%clk 0:00:03.3]}
72. Rxe3 {[%clk 0:00:08.9]} 72... Kxe3 {[%clk 0:00:04.2]} 1/2-1/2

[Event "Early-Titled-Tuesday-Blitz-January-23-2024"]
[Site "Chess.com"]
[Date "2024.01.23"]
[Round "1"]
[White "toninhojit"]
[Black "chegueps"]
[Result "1-0"]
[WhiteElo "2421"]
[BlackElo "2689"]
[TimeControl "180+1"]
[EndTime "8:09:04 PST"]
[Termination "toninhojit won by resignation"]

1. d4 {[%clk 0:03:00.9]} 1... Nf6 {[%clk 0:02:49.9]} 2. c4 {[%clk 0:03:00.9]}
2... e6 {[%clk 0:02:49.8]} 3. Nf3 {[%clk 0:02:59.4]} 3... d5 {[%clk 0:02:50.4]}
4. Nc3 {[%clk 0:02:58.4]} 4... Bb4 {[%clk 0:02:50.9]} 5. Bg5 {[%clk 0:02:56.9]}
5... h6 {[%clk 0:02:49.7]} 6. Bxf6 {[%clk 0:02:57]} 6... Qxf6 {[%clk 0:02:49.4]}
7. Qa4+ {[%clk 0:02:57.7]} 7... Nc6 {[%clk 0:02:49.5]} 8. e3 {[%clk 0:02:57.9]}
8... O-O {[%clk 0:02:47.2]} 9. Be2 {[%clk 0:02:57.2]} 9... dxc4 {[%clk
0:02:46.8]} 10. Bxc4 {[%clk 0:02:56.9]} 10... Bd7 {[%clk 0:02:34.8]} 11. Qc2
{[%clk 0:02:54]} 11... e5 {[%clk 0:02:28.6]} 12. dxe5 {[%clk 0:02:44.2]} 12...
Nxe5 {[%clk 0:02:27.7]} 13. Nxe5 {[%clk 0:02:42.6]} 13... Qxe5 {[%clk
0:02:28.6]} 14. O-O {[%clk 0:02:40.9]} 14... Bd6 {[%clk 0:02:17.8]} 15. g3
{[%clk 0:02:37.9]} 15... Rad8 {[%clk 0:02:01.1]} 16. Rfd1 {[%clk 0:02:36.3]}
16... Bf5 {[%clk 0:01:43.8]} 17. Bd3 {[%clk 0:02:34]} 17... Bh3 {[%clk
0:01:39.7]} 18. Bf1 {[%clk 0:02:33.2]} 18... Bxf1 {[%clk 0:01:34.6]} 19. Rxf1
{[%clk 0:02:34.1]} 19... h5 {[%clk 0:01:31.9]} 20. Qe4 {[%clk 0:02:25.4]} 20...
Qf6 {[%clk 0:01:30.9]} 21. Rad1 {[%clk 0:02:20.3]} 21... Rfe8 {[%clk 0:01:29.1]}
22. Qxb7 {[%clk 0:02:18.8]} 22... h4 {[%clk 0:01:24.3]} 23. Ne4 {[%clk
0:02:14.4]} 23... Qf5 {[%clk 0:01:20]} 24. Nxd6 {[%clk 0:02:13.6]} 24... Rxd6
{[%clk 0:01:20.2]} 25. Rxd6 {[%clk 0:02:05]} 25... cxd6 {[%clk 0:01:21.1]} 26.
Rd1 {[%clk 0:01:47.9]} 26... h3 {[%clk 0:01:18.2]} 27. Qd5 {[%clk 0:01:47.8]}
27... Qg4 {[%clk 0:01:09.6]} 28. Rc1 {[%clk 0:01:16.9]} 28... Re5 {[%clk
0:00:56.8]} 29. Qd3 {[%clk 0:01:07.4]} 29... Rf5 {[%clk 0:00:45.7]} 30. Rc8+
{[%clk 0:00:58.7]} 30... Kh7 {[%clk 0:00:45.8]} 31. Rc4 {[%clk 0:00:59.3]} 31...
Qf3 {[%clk 0:00:43.4]} 32. Qf1 {[%clk 0:00:50.5]} 32... Rh5 {[%clk 0:00:18.5]}
33. Qd3+ {[%clk 0:00:47.4]} 33... g6 {[%clk 0:00:18.2]} 34. Qf1 {[%clk
0:00:45.2]} 34... Kg7 {[%clk 0:00:16.8]} 35. Rf4 {[%clk 0:00:44.2]} 35... Qd5
{[%clk 0:00:14.6]} 36. b3 {[%clk 0:00:41.5]} 36... Qd2 {[%clk 0:00:11.5]} 37.
Qa1+ {[%clk 0:00:31.7]} 37... Kf8 {[%clk 0:00:08.3]} 38. Rd4 {[%clk 0:00:32.3]}
38... Qe2 {[%clk 0:00:07.2]} 39. Qf1 {[%clk 0:00:30.4]} 39... Qf3 {[%clk
0:00:05.8]} 40. Rxd6 {[%clk 0:00:21.6]} 40... Rc5 {[%clk 0:00:06.3]} 41. Rd8+
{[%clk 0:00:17.7]} 41... Kg7 {[%clk 0:00:03.4]} 42. Rd1 {[%clk 0:00:16.4]} 42...
Rc2 {[%clk 0:00:03.1]} 43. Ra1 {[%clk 0:00:15.3]} 43... a5 {[%clk 0:00:01.5]}
44. a3 {[%clk 0:00:15.5]} 44... g5 {[%clk 0:00:02]} 45. b4 {[%clk 0:00:15.5]}
45... axb4 {[%clk 0:00:02.6]} 46. axb4 {[%clk 0:00:16.3]} 46... Rb2 {[%clk
0:00:03.3]} 47. Rd1 {[%clk 0:00:10.4]} 47... g4 {[%clk 0:00:01.9]} 48. Rd4
{[%clk 0:00:08.7]} 48... Rb3 {[%clk 0:00:02.3]} 49. Rf4 {[%clk 0:00:07.6]} 49...
Qd5 {[%clk 0:00:01.2]} 50. Rxg4+ {[%clk 0:00:08]} 50... Kf8 {[%clk 0:00:01.9]}
51. Qxh3 {[%clk 0:00:08.2]} 51... Rb1+ {[%clk 0:00:02.1]} 52. Qf1 {[%clk
0:00:08.7]} 52... Rxf1+ {[%clk 0:00:02.6]} 53. Kxf1 {[%clk 0:00:09.6]} 53...
Qh1+ {[%clk 0:00:03]} 54. Ke2 {[%clk 0:00:09.8]} 54... Qxh2 {[%clk 0:00:03.9]}
55. Rf4 {[%clk 0:00:10.3]} 55... Qh5+ {[%clk 0:00:04.1]} 56. Ke1 {[%clk
0:00:10.5]} 56... Qb5 {[%clk 0:00:05]} 57. Kd2 {[%clk 0:00:08.7]} 57... Qa4
{[%clk 0:00:05.2]} 58. Ke1 {[%clk 0:00:09.2]} 58... Qa2 {[%clk 0:00:05.7]} 59.
Kf1 {[%clk 0:00:09.5]} 59... Qc2 {[%clk 0:00:06.2]} 60. Kg2 {[%clk 0:00:10.1]}
60... Kg7 {[%clk 0:00:06.8]} 61. Kg1 {[%clk 0:00:10.8]} 61... Kg6 {[%clk
0:00:06.8]} 62. Kg2 {[%clk 0:00:11.5]} 62... Qc6+ {[%clk 0:00:06.8]} 63. Kg1
{[%clk 0:00:11.3]} 63... f6 {[%clk 0:00:07.6]} 64. Kh2 {[%clk 0:00:10.7]} 64...
Kg5 {[%clk 0:00:07.2]} 65. Kg1 {[%clk 0:00:11.4]} 65... Qc1+ {[%clk 0:00:06.9]}
66. Kh2 {[%clk 0:00:12.1]} 66... Qb2 {[%clk 0:00:07.5]} 67. Kg2 {[%clk
0:00:12.6]} 67... f5 {[%clk 0:00:04.9]} 68. Kg1 {[%clk 0:00:12.4]} 68... Qb1+
{[%clk 0:00:05.4]} 69. Kg2 {[%clk 0:00:12.9]} 69... Kf6 {[%clk 0:00:06.3]} 70.
Kh2 {[%clk 0:00:12.4]} 70... Ke6 {[%clk 0:00:06.8]} 71. Kg2 {[%clk 0:00:13]}
71... Kd6 {[%clk 0:00:07.6]} 72. Kh2 {[%clk 0:00:13.6]} 72... Kc6 {[%clk
0:00:08.3]} 73. Kg2 {[%clk 0:00:14.3]} 73... Kb5 {[%clk 0:00:09.1]} 74. Kh2
{[%clk 0:00:14.7]} 74... Ka4 {[%clk 0:00:09.7]} 75. Kg2 {[%clk 0:00:15.2]} 75...
Kb3 {[%clk 0:00:10.4]} 76. Rd4 {[%clk 0:00:12.5]} 76... Kc3 {[%clk 0:00:10.9]}
77. Kf3 {[%clk 0:00:11.6]} 77... Qh1+ {[%clk 0:00:10.5]} 78. Kf4 {[%clk
0:00:10.9]} 78... Qh5 {[%clk 0:00:11.1]} 79. f3 {[%clk 0:00:09.5]} 79... Qh6+
{[%clk 0:00:10.5]} 80. Kxf5 {[%clk 0:00:09.4]} 80... Qxe3 {[%clk 0:00:11.3]} 81.
Rf4 {[%clk 0:00:09.9]} 81... Qd3+ {[%clk 0:00:11]} 82. Kg4 {[%clk 0:00:10.4]}
82... Qg6+ {[%clk 0:00:11.5]} 83. Kh4 {[%clk 0:00:10.5]} 83... Qh5+ {[%clk
0:00:10.8]} 84. Kxh5 {[%clk 0:00:10.6]} 1-0

[Event "Early-Titled-Tuesday-Blitz-January-23-2024"]
[Site "Chess.com"]
[Date "2024.01.23"]
[Round "1"]
[White "NM_Antelacus"]
[Black "mac0504"]
[Result "1/2-1/2"]
[WhiteElo "2174"]
[BlackElo "2560"]
[TimeControl "180+1"]
[EndTime "8:09:35 PST"]
[Termination "Game drawn - insufficient material"]

1. e4 {[%clk 0:03:00.9]} 1... Nc6 {[%clk 0:02:59.5]} 2. d4 {[%clk 0:02:59.7]}
2... d5 {[%clk 0:02:59.5]} 3. Nc3 {[%clk 0:02:57.9]} 3... dxe4 {[%clk
0:02:59.2]} 4. d5 {[%clk 0:02:57.9]} 4... Nb8 {[%clk 0:02:59.6]} 5. Nxe4 {[%clk
0:02:57.1]} 5... Nf6 {[%clk 0:03:00.4]} 6. Nc3 {[%clk 0:02:49.9]} 6... c6 {[%clk
0:02:55.8]} 7. dxc6 {[%clk 0:02:46.6]} 7... Qxd1+ {[%clk 0:02:56.7]} 8. Nxd1
{[%clk 0:02:45.8]} 8... Nxc6 {[%clk 0:02:57.6]} 9. c3 {[%clk 0:02:40.3]} 9... e5
{[%clk 0:02:54.1]} 10. Ne3 {[%clk 0:02:37.2]} 10... Bc5 {[%clk 0:02:53.2]} 11.
Bc4 {[%clk 0:02:33.9]} 11... O-O {[%clk 0:02:48.4]} 12. Nf3 {[%clk 0:02:32.5]}
12... h6 {[%clk 0:02:36.8]} 13. O-O {[%clk 0:02:30.8]} 13... e4 {[%clk
0:02:33.7]} 14. Ne1 {[%clk 0:02:23.8]} 14... Re8 {[%clk 0:02:32]} 15. N1c2
{[%clk 0:02:21.5]} 15... a6 {[%clk 0:02:24.8]} 16. b4 {[%clk 0:02:18.1]} 16...
Ba7 {[%clk 0:02:20]} 17. Bb3 {[%clk 0:02:16.7]} 17... Ne5 {[%clk 0:02:14.8]} 18.
Nd5 {[%clk 0:02:07.6]} 18... Nxd5 {[%clk 0:01:48.2]} 19. Bxd5 {[%clk 0:02:06.7]}
19... Nd3 {[%clk 0:01:45.8]} 20. Be3 {[%clk 0:02:04.7]} 20... Bb8 {[%clk
0:01:46.4]} 21. Rfd1 {[%clk 0:01:53.4]} 21... Nf4 {[%clk 0:01:42.7]} 22. Bc4
{[%clk 0:01:47.3]} 22... Bg4 {[%clk 0:01:38.4]} 23. Rd2 {[%clk 0:01:45]} 23...
Be5 {[%clk 0:01:34.1]} 24. Bd4 {[%clk 0:01:42.3]} 24... Rac8 {[%clk 0:01:33.7]}
25. Bf1 {[%clk 0:01:22.9]} 25... Bb8 {[%clk 0:01:11.2]} 26. Ne3 {[%clk
0:01:17.6]} 26... Be6 {[%clk 0:01:09.6]} 27. c4 {[%clk 0:01:15.5]} 27... f5
{[%clk 0:01:05.6]} 28. Rc1 {[%clk 0:01:13.3]} 28... Kf7 {[%clk 0:00:36.8]} 29.
a3 {[%clk 0:01:11.5]} 29... g5 {[%clk 0:00:32.2]} 30. c5 {[%clk 0:01:10.5]}
30... Ng6 {[%clk 0:00:32.4]} 31. Bc4 {[%clk 0:01:07.3]} 31... f4 {[%clk
0:00:32.1]} 32. Bxe6+ {[%clk 0:01:06]} 32... Kxe6 {[%clk 0:00:28.5]} 33. Nc4
{[%clk 0:01:04]} 33... Rcd8 {[%clk 0:00:25.5]} 34. Bg7 {[%clk 0:00:58.3]} 34...
Rxd2 {[%clk 0:00:23.1]} 35. Nxd2 {[%clk 0:00:57.8]} 35... Kf5 {[%clk 0:00:23]}
36. Nc4 {[%clk 0:00:50.8]} 36... Re7 {[%clk 0:00:17]} 37. Bc3 {[%clk 0:00:45.2]}
37... Rd7 {[%clk 0:00:17.1]} 38. Kf1 {[%clk 0:00:44.1]} 38... Rd3 {[%clk
0:00:17.1]} 39. Ke2 {[%clk 0:00:41.7]} 39... Nh4 {[%clk 0:00:17.7]} 40. Nb2
{[%clk 0:00:38.3]} 40... Rd5 {[%clk 0:00:15.5]} 41. g3 {[%clk 0:00:37]} 41...
f3+ {[%clk 0:00:15.9]} 42. Kf1 {[%clk 0:00:32]} 42... Ng6 {[%clk 0:00:08.8]} 43.
Nd1 {[%clk 0:00:30.9]} 43... Rd3 {[%clk 0:00:08.4]} 44. Ne3+ {[%clk 0:00:29.8]}
44... Ke6 {[%clk 0:00:08.9]} 45. Bg7 {[%clk 0:00:28.4]} 45... h5 {[%clk
0:00:08.1]} 46. Rd1 {[%clk 0:00:27.2]} 46... Rxa3 {[%clk 0:00:07.1]} 47. Nc4
{[%clk 0:00:16.6]} 47... Ra2 {[%clk 0:00:07.3]} 48. Nd6 {[%clk 0:00:14.8]} 48...
Bxd6 {[%clk 0:00:06.1]} 49. Rxd6+ {[%clk 0:00:14.6]} 49... Kf7 {[%clk
0:00:06.4]} 50. Rd7+ {[%clk 0:00:14.6]} 50... Ke8 {[%clk 0:00:05.9]} 51. Rd1
{[%clk 0:00:13.9]} 51... Ne7 {[%clk 0:00:04.5]} 52. Be5 {[%clk 0:00:12.6]} 52...
Nc6 {[%clk 0:00:04.9]} 53. Bf6 {[%clk 0:00:12.9]} 53... g4 {[%clk 0:00:05.1]}
54. h3 {[%clk 0:00:10.1]} 54... Nxb4 {[%clk 0:00:05.1]} 55. hxg4 {[%clk
0:00:09.1]} 55... hxg4 {[%clk 0:00:06]} 56. Rb1 {[%clk 0:00:07.4]} 56... Nd3
{[%clk 0:00:06.3]} 57. Bd4 {[%clk 0:00:06.3]} 57... Kd7 {[%clk 0:00:06]} 58. Be3
{[%clk 0:00:05.5]} 58... Kc6 {[%clk 0:00:06.6]} 59. Kg1 {[%clk 0:00:05.7]} 59...
a5 {[%clk 0:00:06.5]} 60. Rb6+ {[%clk 0:00:05.3]} 60... Kc7 {[%clk 0:00:05.9]}
61. Re6 {[%clk 0:00:04.7]} 61... a4 {[%clk 0:00:05.9]} 62. Rxe4 {[%clk
0:00:04.8]} 62... Ra1+ {[%clk 0:00:06.1]} 63. Kh2 {[%clk 0:00:03.9]} 63... a3
{[%clk 0:00:07]} 64. Ra4 {[%clk 0:00:03.3]} 64... a2 {[%clk 0:00:07]} 65. Bd4
{[%clk 0:00:03.2]} 65... Kc6 {[%clk 0:00:07.5]} 66. Bxa1 {[%clk 0:00:02.6]}
66... Nxf2 {[%clk 0:00:08]} 67. Rxa2 {[%clk 0:00:03.2]} 67... Ne4 {[%clk
0:00:08.6]} 68. Rc2 {[%clk 0:00:02.2]} 68... Kd5 {[%clk 0:00:09.3]} 69. Ra2
{[%clk 0:00:02.4]} 69... Kc6 {[%clk 0:00:09.5]} 70. Ra7 {[%clk 0:00:03.1]} 70...
Nxc5 {[%clk 0:00:09.5]} 71. Ra8 {[%clk 0:00:03.2]} 71... b5 {[%clk 0:00:06.9]}
72. Rg8 {[%clk 0:00:03.8]} 72... b4 {[%clk 0:00:02]} 73. Rxg4 {[%clk 0:00:04.3]}
73... b3 {[%clk 0:00:02.8]} 74. Rb4 {[%clk 0:00:04.3]} 74... Kd5 {[%clk
0:00:03]} 75. Bd4 {[%clk 0:00:04.4]} 75... Ne6 {[%clk 0:00:02.9]} 76. Rxb3
{[%clk 0:00:04.4]} 76... Nxd4 {[%clk 0:00:03]} 77. Rd3 {[%clk 0:00:04.9]} 77...
Ke4 {[%clk 0:00:03.6]} 78. Rd1 {[%clk 0:00:05.2]} 78... Ne2 {[%clk 0:00:03.5]}
79. Kh3 {[%clk 0:00:05.2]} 79... Ke3 {[%clk 0:00:04.1]} 80. g4 {[%clk
0:00:05.5]} 80... Nf4+ {[%clk 0:00:04]} 81. Kg3 {[%clk 0:00:05.1]} 81... Ne2+
{[%clk 0:00:03.9]} 82. Kh4 {[%clk 0:00:05.4]} 82... f2 {[%clk 0:00:03.8]} 83. g5
{[%clk 0:00:05.2]} 83... Nc3 {[%clk 0:00:04]} 84. Rf1 {[%clk 0:00:04.4]} 84...
Ne4 {[%clk 0:00:04.3]} 85. Rxf2 {[%clk 0:00:05]} 85... Kxf2 {[%clk 0:00:04.5]}
86. g6 {[%clk 0:00:05.2]} 86... Ke3 {[%clk 0:00:03]} 87. g7 {[%clk 0:00:05.3]}
87... Nf6 {[%clk 0:00:03.7]} 88. g8=Q {[%clk 0:00:05.4]} 88... Nxg8 {[%clk
0:00:04.2]} 1/2-1/2